Cogmind - Beta 11 @@@ ROGUE MODE // 2022.03.19 @ 18:26:09 Player: Rentaro Result: Self-destructed Performance ------------- Evolutions (2) 1000 Regions Visited (4) 800 Robots Destroyed (67) 335 Value Destroyed (885) 885 Prototype IDs (4) 80 Alien Tech Used (0) 0 Bonus (0) 0 TOTAL SCORE: 3100 Bonus ------- None Cogmind --------- Core Integrity 284/550 Matter 100/300 Energy 100/100 System Corruption 1% Temperature Cool (0) Movement Core (200) Ox3 Location -8/Materials Parts ------- > --- POWER (1) -------- (None) > --- PROPULSION (3) --- (None) > --- UTILITY (5) ------ Structural Scanner Machine Analyzer Visual Processing Unit Seismic Detector ECM Suite > --- WEAPON (2) ------- Gauss Cannon > --- INVENTORY (5) ---- Signal Interpreter Improved Assault Rifle Peak State ------------ > --- POWER ------------ Light Angular Momentum Engine > --- PROPULSION ------- Wheel Wheel Improved Hover Unit > --- UTILITY ---------- Structural Scanner Machine Analyzer Visual Processing Unit Seismic Detector ECM Suite > --- WEAPON ----------- Improved EM Shotgun > --- INVENTORY -------- Light Ion Engine Light Ion Engine Signal Interpreter Improved Assault Rifle Gauss Cannon [Rating: 21] Favorites ----------- Power Light Ion Engine Engine Light Ion Engine Power Core Light Nuclear Core Propulsion Compact Wheel Wheel Compact Wheel Hover Unit Improved Hover Unit Flight Unit Flight Unit Utility Structural Scanner Device Structural Scanner Storage Small Storage Unit Processor Visual Processing Unit Weapon Small Laser Energy Gun Small Laser Ballistic Gun Shotgun Ballistic Cannon Gauss Cannon Build | -11 -10 -9 -9 -8 ------- Run | Scr Mat Mat Min Mat Slots Evolved 4 | . . 2 . 2 Power . | . . . . . Propulsion 1 | . . . . 1 Utility 3 | . . 2 . 1 Weapon . | . . . . . Parts Attached 52 | 7 8 26 . 11 Power 9 | 1 . 3 . 5 Engine 8 | 1 . 3 . 4 Core 1 | . . . . 1 Reactor . | . . . . . Propulsion 15 | 2 5 6 . 2 Treads . | . . . . . Leg . | . . . . . Wheel 6 | 2 2 . . 2 Hover 5 | . . 5 . . Flight 4 | . 3 1 . . Utility 16 | 2 2 10 . 2 Device 11 | 1 2 7 . 1 Storage 3 | 1 . 2 . . Processor 2 | . . 1 . 1 Hackware . | . . . . . Protection . | . . . . . Artifact . | . . . . . Weapon 12 | 2 1 7 . 2 Energy Gun 7 | 2 1 3 . 1 Energy Cannon . | . . . . . Ballistic Gun 4 | . . 4 . . Ballistic Cannon 1 | . . . . 1 Launcher . | . . . . . Special Weapon . | . . . . . Impact Weapon . | . . . . . Slashing Weapon . | . . . . . Piercing Weapon . | . . . . . Special Melee Weapon . | . . . . . Unidentified Prototypes 2 | . . 2 . . Corrupted Parts 1 | . . . . 1 System Corruption 1 | . . . . 1 Parts Lost 20 | . . 13 1 6 Power 6 | . . 4 . 2 Propulsion 7 | . . 3 1 3 Utility 3 | . . 3 . . Weapon 4 | . . 3 . 1 Highest Loss Streak 6 | . . 6 1 2 To Critical Strikes . | . . . . . Average Slot Usage (%) 79 | . 100 80 66 67 Engine 9 | . 14 10 . 6 Wheel 9 | . 27 2 . 5 Hover 6 | . . 13 22 3 Device 24 | . 14 30 22 26 Storage 3 | . 14 1 . . Processor 9 | . . 8 11 16 Energy Gun 9 | . 28 4 11 2 Ballistic Gun 2 | . . 6 . . Ballistic Cannon 1 | . . . . 4 Naked Turns . | . . . . . Heaviest Build 29 | 11 11 29 6 16 Greatest Support 32 | 32 32 32 14 20 Greatest Overweight (x) 8 | . 2 8 1 5 Average Overweight (x) . | . . . . . Largest Inventory Capacity 15 | 8 8 15 5 5 Average Capacity 6 | 7 8 6 5 5 Most Carried 8 | 8 8 8 4 5 Average Carried 4 | 3 7 3 2 3 Final Capacity 8 | 8 8 5 5 5 Final Carried 8 | 8 8 2 4 2 Class Distribution -------------------- 52% | Infiltrator-Mutant 27% | Mutant 19% | Scavenger-Mutant Dominant Class ---------------- Mutant | -10/Materials Infiltrator-Mutant | -9/Materials Infiltrator-Mutant | -9/Mines Infiltrator-Mutant | -8/Materials Resources | -11 -10 -9 -9 -8 ----------- Run | Scr Mat Mat Min Mat Matter Collected 812 | 270 80 358 10 94 Remotely . | . . . . . Salvage Created 2027 | 201 879 390 23 534 Parts 135 | 18 50 37 1 29 Haulers Intercepted 5 | . 1 3 . 1 Recyclers Shooed 14 | 2 6 1 . 5 Parts Field Recycled . | . . . . . Retrieved Matter . | . . . . . Parts Self-Destructed . | . . . . . Prevented . | . . . . . Kills | -11 -10 -9 -9 -8 ------- Run | Scr Mat Mat Min Mat Combat Hostiles Destroyed 20 | . 8 6 . 6 Guns 14 | . 8 6 . . Cannons 3 | . . . . 3 AOE 3 | . . . . 3 Classes Destroyed 12 | 3 5 1 . 3 Worker 9 | 2 2 3 1 1 Builder 4 | . 3 . . 1 Tunneler 10 | 5 2 1 . 2 Hauler 5 | . 1 3 . 1 Recycler 9 | 1 4 . . 4 Mechanic 1 | . . . . 1 Operator 2 | . . 2 . . Watcher 7 | . 2 4 . 1 Swarmer 10 | . 3 4 . 3 Grunt 7 | . 5 2 . . Sentry 2 | . . . . 2 Hunter 1 | . . . . 1 Best Kill Streak 6 | 4 4 5 1 6 Combat Bots Only 5 | . 3 5 . 3 Max Kills in Single Turn 3 | 1 1 2 1 3 Gunslinging . | . . . . . Exploded 3 | . . . . 3 Melee . | . . . . . Uniques/NPCs Destroyed . | . . . . . Combat | -11 -10 -9 -9 -8 -------- Run | Scr Mat Mat Min Mat Damage Taken 1790 | . 166 1028 37 559 Core 709 | . 68 375 . 266 Absorbed by Shields . | . . . . . Core Remaining (%) 59 | 100 72 . 6 . Volleys Fired 222 | 24 83 61 2 52 Largest 2 | 2 2 2 1 1 Hottest 80 | 80 80 80 45 48 Shots Fired 344 | 48 166 75 2 53 Gun 311 | 48 166 75 2 20 Cannon 33 | . . . . 33 Launcher . | . . . . . Special . | . . . . . Kinetic 79 | . . 46 . 33 Thermal 241 | 48 166 27 . . Explosive . | . . . . . Electromagnetic 24 | . . 2 2 20 Robot Hit Streak 8 | 7 8 7 1 8 Robot Miss Streak 4 | 2 3 3 4 2 Penetration Max . | . . . . . Secondary Targets 2 | . . 2 . . Max Gunslinging Chain 1 | . . 1 . . Shots Hit Robots 229 | 31 98 56 1 43 Core Hits 99 | 9 37 31 1 21 Critical Kills . | . . . . . Critical Parts Destroyed . | . . . . . Critical Strikes 6 | . . . . 6 Blast 6 | . . . . 6 Melee Attacks . | . . . . . Impact . | . . . . . Slashing . | . . . . . Piercing . | . . . . . Sneak Attacks . | . . . . . Combat Hostiles . | . . . . . Follow-up Attacks . | . . . . . Damage Inflicted 3730 | 336 1090 970 12 1322 Guns 2524 | 336 1082 727 12 367 Cannons 614 | . . . . 614 Explosions 567 | . . 226 . 341 Melee . | . . . . . Ramming 25 | . 8 17 . . Kinetic 1101 | . . 487 . 614 Thermal 2095 | 336 1082 336 . 341 Explosive 99 | . . 99 . . Electromagnetic 410 | . . 31 12 367 Impact . | . . . . . Slashing . | . . . . . Piercing . | . . . . . Highest Corruption 1 | . . . . 1 Average Corruption 1 | . . . . 1 Corruption Purged . | . . . . . Corruption Blocked . | . . . . . Effects 8 | . . . . 8 Message Errors 3 | . . . . 3 Matter Fused 1 | . . . . 1 Heat Flow Errors 1 | . . . . 1 Parts Rejected 1 | . . . . 1 Data Loss (minor) 1 | . . . . 1 Misfires 1 | . . . . 1 Overload Shots . | . . . . . Overflow Damage 189 | . . 61 . 128 Projectiles . | . . . . . Explosions 189 | . . 61 . 128 Melee . | . . . . . Knockbacks 2 | . . . . 2 Impact . | . . . . . Kinetic 2 | . . . . 2 Secondary . | . . . . . Self-Inflicted Damage 349 | . 3 131 . 215 Shots 6 | . . 2 . 4 Rammed 4 | . 3 1 . . Targets Rammed 4 | . 3 1 . . Kicked . | . . . . . Crushed . | . . . . . Highest Temperature 300 | 180 300 63 . 201 Average Temperature 58 | 55 67 25 . 42 Received Heat Transfer 405 | . 69 267 24 45 Effects 3 | . 3 . . . Interference 3 | . 3 . . . Siege Activations . | . . . . . Robots Corrupted . | . . . . . Combat Hostiles . | . . . . . Parts Fried 2 | . . . . 2 Impact Corruptions . | . . . . . Robots Melted . | . . . . . Combat Hostiles . | . . . . . Parts Melted 3 | . 3 . . . Heat Transferred 4225 | 775 2475 575 . 400 Parts Sabotaged . | . . . . . Parts Stolen . | . . . . . Parts Stripped . | . . . . . Power Chain Reactions 2 | . . . . 2 Missiles Intercepted . | . . . . . Alert | -11 -10 -9 -9 -8 ------- Run | Scr Mat Mat Min Mat Peak Influence 419 | 40 233 419 164 400 Initial 159 | . 26 24 159 59 Average 145 | 18 141 139 160 167 Maximum Alert Level 2 | . 1 2 . 2 Low Security (%) 72 | 100 69 73 100 67 Level 1 27 | . 30 26 . 32 Level 2 . | . . . . . Level 3 . | . . . . . Level 4 . | . . . . . Level 5 . | . . . . . High Security . | . . . . . Max Security . | . . . . . Squads Dispatched 6 | . 2 3 1 . Investigation 2 | . . 1 1 . Extermination . | . . . . . Reinforcement 4 | . 2 2 . . Assault . | . . . . . Garrison . | . . . . . Intercept . | . . . . . Searches Triggered . | . . . . . Construction Impeded . | . . . . . Haulers Reinforced . | . . . . . Active Scanning Responses . | . . . . . Cargo Convoy Interrupts . | . . . . . Stealth | -11 -10 -9 -9 -8 --------- Run | Scr Mat Mat Min Mat Distress Signals 6 | . 2 2 . 2 Communications Jammed . | . . . . . Distress Signals . | . . . . . Times Spotted 96 | . 25 42 2 27 Peak Tracking Total 10 | . 5 10 2 5 Tactical Retreats 17 | . 1 8 . 8 Traps | -11 -10 -9 -9 -8 ------- Run | Scr Mat Mat Min Mat Traps Triggered 2 | . . 1 . 1 Indirectly . | . . . . . Trap Hack Attempts . | . . . . . Triggered . | . . . . . Disarmed . | . . . . . Reprogrammed . | . . . . . Reused . | . . . . . Traps Extracted . | . . . . . Installed . | . . . . . Triggered . | . . . . . Machines | -11 -10 -9 -9 -8 ---------- Run | Scr Mat Mat Min Mat Machines Disabled 6 | . . 3 . 3 Max in Single Turn 3 | . . 2 . 3 Machines Sabotaged . | . . . . . Garrisons Compromised . | . . . . . Overloaded Fab Kills . | . . . . . Hacking | -11 -10 -9 -9 -8 --------- Run | Scr Mat Mat Min Mat Machines Accessed 12 | . 3 4 1 4 Terminals 10 | . 3 3 . 4 Fabricators . | . . . . . Repair Stations . | . . . . . Recycling Units 1 | . . 1 . . Scanalyzers . | . . . . . Garrison Access . | . . . . . Total Hacks 25 | . 7 10 1 7 Successful 10 | . 1 6 1 2 Failed 15 | . 6 4 . 5 Catastrophic 4 | . 1 2 . 1 Database Lockouts . | . . . . . Manual 18 | . 6 5 . 7 Terminals 22 | . 7 8 . 7 Fabricators . | . . . . . Repair Stations . | . . . . . Recycling Units 2 | . . 2 . . Scanalyzers . | . . . . . Garrison Access . | . . . . . Terminal Hacks 9 | . 1 5 1 2 Prototype ID Bank 1 | . . 1 . . Open Door 1 | . . . 1 . Unreport Threat 2 | . . 1 . 1 Disarm Traps 1 | . . 1 . . Dispatch Records 1 | . . 1 . . Surveillance Status 1 | . . . . 1 Hauler Manifests 2 | . 1 1 . . Fabricator Hacks . | . . . . . Repair Station Hacks . | . . . . . Recycling Unit Hacks 1 | . . 1 . . Retrieve Components 1 | . . 1 . . Scanalyzer . | . . . . . Garrison Access Hacks . | . . . . . Unauthorized Hacks . | . . . . . Terminals . | . . . . . Fabricators . | . . . . . Repair Stations . | . . . . . Recycling Units . | . . . . . Scanalyzers . | . . . . . Garrison Access . | . . . . . Data Cores Recovered . | . . . . . Used . | . . . . . Hacking Detections 10 | . 3 3 . 4 Full Trace Events . | . . . . . Feedback Events . | . . . . . Feedback Blocked . | . . . . . Robot Schematics Acquired . | . . . . . Robots Built . | . . . . . Authchips . | . . . . . Time . | . . . . . Total Robot Build Rating . | . . . . . Part Schematics Acquired . | . . . . . Parts Built . | . . . . . Authchips . | . . . . . Time . | . . . . . Total Part Build Rating . | . . . . . Parts Repaired . | . . . . . Time . | . . . . . Parts Recycled . | . . . . . Recycled Matter . | . . . . . Retrieved Matter . | . . . . . Retrieved Components 9 | . . 9 . . Parts Scanalyzed . | . . . . . Part Schematics Acquired . | . . . . . Parts Damaged . | . . . . . Bothacking | -11 -10 -9 -9 -8 ------------ Run | Scr Mat Mat Min Mat Used RIF Installer . | . . . . . Robots Hacked . | . . . . . Non-combat . | . . . . . Combat . | . . . . . Robot Hacks Applied . | . . . . . Relay Couplers Released . | . . . . . Fabnet Peak Effective % . | . . . . . Robots Rewired . | . . . . . Allies Hacked . | . . . . . Hacks Repelled . | . . . . . Allies | -11 -10 -9 -9 -8 -------- Run | Scr Mat Mat Min Mat Total Allies . | . . . . . Largest Group . | . . . . . Highest-Rated Group . | . . . . . Highest-Rated Ally . | . . . . . Total Orders . | . . . . . Ally Attacks . | . . . . . Total Damage . | . . . . . Kills . | . . . . . Allies Corrupted . | . . . . . Allies Melted . | . . . . . Intel | -11 -10 -9 -9 -8 ------- Run | Scr Mat Mat Min Mat Robot Analysis Total . | . . . . . Derelict Logs Recovered . | . . . . . Drone Launches . | . . . . . Drone Recoveries . | . . . . . Exploration | -11 -10 -9 -9 -8 ------------- Run | Scr Mat Mat Min Mat Turns Passed 3631 | 183 818 1152 139 1339 Spaces Moved 2216 | 94 511 848 72 691 Core 84 | 9 . 2 49 24 Treads . | . . . . . Legs . | . . . . . Wheels 1219 | 85 510 84 . 540 Hover 808 | . . 658 23 127 Flight 105 | . 1 104 . . Fastest Speed 40 | 50 100 40 56 80 Average Speed 89 | 95 100 68 85 106 Slowest Speed 450 | 100 205 450 100 300 Overloaded Moves . | . . . . . Propulsion Burnouts . | . . . . . Robots Hopped . | . . . . . Cave-ins Triggered . | . . . . . Exploration Rate (%) 35 | 4 60 47 17 48 Regions Visited 4 Branch Regions 1 Pre-discovered Areas . | . . . . . Known Exits Taken . | . . . . . Unknown Exits Taken 4 | 1 1 1 1 . Scrap Searched 1 | . . . 1 . Spaces Dug . | . . . . . Terrain Destroyed 96 | . . 37 . 59 Melee . | . . . . . Projectile 13 | . . . . 13 AOE 83 | . . 37 . 46 Terrain Rammed . | . . . . . Walls Destroyed . | . . . . . Machines Disabled . | . . . . . Actions | -11 -10 -9 -9 -8 --------- Run | Scr Mat Mat Min Mat Total 3530 | 138 654 1349 147 1242 Wait 966 | . 26 387 72 481 Move 2212 | 93 510 847 71 691 Hop . | . . . . . Pick Up 45 | 14 11 13 2 5 Fast Attach 7 | 1 . 3 . 3 Attach 29 | 6 . 16 . 7 Detach 5 | . . 4 . 1 Swap 16 | . 8 7 . 1 Drop 24 | . 13 10 . 1 Fire 222 | 24 83 61 2 52 Melee . | . . . . . Ram 4 | . 3 1 . . Kick . | . . . . . Crush . | . . . . . Escape Stasis . | . . . . . Rewire . | . . . . . Trap . | . . . . . Miscellaneous . | . . . . . Route ------- -11/Scrapyard -10/Materials -9/Materials -9/Mines -8/Materials (discovered 1 exit: [*Fac]) History --------- Turn | Location | Event 19 | -11/Scrapyard | Discovered new exit (range 15) 184 | -11/Scrapyard | Entered Materials 309 | -10/Materials | Build established: Mutant 596 | -10/Materials | Discovered new exit (range 13) 1002 | -10/Materials | Entered another Materials area 1002 | -9/Materials | Evolved 2 slots: Utility x2 1158 | -9/Materials | Core integrity fell below 50% 1182 | -9/Materials | Lost 6 parts (1p2n1u2w) 1307 | -9/Materials | Build established: Infiltrator-Mutant 1908 | -9/Materials | Discovered new exit (range 7) 2150 | -9/Materials | Core integrity fell below 20% 2154 | -9/Materials | Entered Mines 2155 | -9/Mines | Assembled infested the area 2157 | -9/Mines | Met a Derelict shopkeep closing up shop 2287 | -9/Mines | Discovered new exit (range 6) 2293 | -9/Mines | Entered Materials 2293 | -8/Materials | Evolved 2 slots: Propulsion x1, Utility x1 3127 | -8/Materials | Build established: Scavenger-Mutant 3250 | -8/Materials | Discovered new exit (range 11) 3602 | -8/Materials | Build established: Infiltrator-Mutant 3632 | -8/Materials | Self-destructed Last Messages --------------- 03294_ Y-45 Defender Imp. Ion Engine blasted off. 03294_ Y-45 Defender destroyed. 03305_ System corrupted: FCS attempts to trigger Gauss Cannon. 03305_ System corrupted: Gauss Cannon misfires. 03305_ M-13 Machinist suffers critical hit (Blast). 03305_ Destroyed Machine Analyzer. 03305_ M-13 Machinist destroyed. 03309_ Wheel destroyed. 03311_ Lgt. Ion Engine destroyed. 03311_ Slug penetrates Y-45 Defender. 03313_ K-01 Serf collects debris. 03315_ Y-45 Defender Beam Rifle blasted off. 03317_ Y-45 Defender Lgt. Treads blasted off. 03317_ K-01 Serf collects debris. 03327_ Destroyed Heat Sink. 03327_ Y-45 Defender Imp. Ion Engine blasted off. 03329_ Y-45 Defender destroyed. 03329_ K-01 Serf collects debris. 03361_ System corrupted: Matter fused (-6). 03630_ System corrupted: Lgt. Nuclear Core rejected. Map ----- +----------------------------------------------------+ | + # ### """ ##?????? ##????????? | | # # ### ##?????? # ????????? | | # # ### ###### ! # ????????? | | ## ################+######## # ????????? | | ## # [ ####### # """ # ????????? | | # ####### # """ # ????????? | | ## # " %% + """ # ????????? | | ## + "Y" ####### # # ????????? | | # # """ !#######= # """ # ????????? | | # # ##???## # """ # ? ????? | | # #########???## + """ ##?#+#????? | | # #########???## ######## ##?# #????? | | " ##??????????## ###############?? ?????? | | # %##??????????## ################# ?????? | | # ##??????????## ################# ##???? | | # ##??????????## % % % ##???? | | # ##??????????##########+########### ##???? | | ## ????????????##### ####% ! ####### ##???? | | ??"""""""??????????### ! ####### ##???? | | ? ??"""""""???????????## ! # ### ##???? | | ??"""""""??########### + T ### ##???? | | ## ??"""""""??########### "" # ### ##???? | | ## ??"""""""??## b # S"" ## #### ##???? | | ?? ???????????## """g# "" ## #### ##???? | | ????????????????## g""" ######## #### ##???? | | ????????????????## * """@# """ # #### ##???? | | ????????????????## """ # """ # #### ##???? | | ????????????????## #! """ + ##???? | | ????????????????## # # #######???? | | ????????????????## # # #######???? | | ## ????###??????## ! #! [ # ####??????? | | #" ??#################+########### ####??????? | | # % !#"#"########## ####### ##??????? | | [= %*%%= ##??????? | | % !*! T T ##??????? | | / ##??????? | | # ##"########### ####### ##??????? | | ##???################ ##########+####??????? | | ??????? # # ###??## ??????? | | ??????? # # ##???## """ ##????? | | """???? # + ##???## """ ##????? | | """???? # # ##???## """ ##????? | | """???? # # ##???## ##????? | | ????"?" # # ##???## ##????? | | ????"R" # ] # ##???## "" ##????? | | ????""" ############# ##???## S"" ##????? | | ???????############## ##???## "" ##????? | | ??????????## """ + ##???##########??????? | | ????????? / """"" # ##???##########??????? | | ?????????????""""" # ##???????????????????? | +----------------------------------------------------+ Best States ------------- Heat Dissipation 31 Energy Generation 18 Energy Capacity 160 Matter Stores 300 Matter Capacity 300 Sight Range 18 Terrain Scan Density 10 ECM Strength 1 Evasion (%) 62 Item Schematics ----------------- None Robot Schematics ------------------ None Fabricated ------------ Nothing Alien Tech Used ----------------- None Achievements -------------- None Challenges ------------ None Game ------ Seed LegCargoDatajack Manual? 0 Play Time 00:57:34 Cumulative 7.3 hours Start 2022.03.19 @ 17:21:01 End 2022.03.19 @ 18:26:09 Sessions 1 Manual Loads 0 Difficulty Rogue Special Mode None Game No. 4 Rogue 4 Adventurer 0 Explorer 0 Win Type - Total 0 Types 0/0/0/0/0/0/0/0/0 Lore% 4 Gallery% 12 Achievement% 14 Wizard Run 0 Options --------- ASCII 0 Keyboard 0 Movement Mouse Keybinds 0 Fullscreen 2 Font 18/TerminusBold Map View 76x50 Tactical HUD 1 Map Filters NONE Filters NONE Steam 1 RUN: bd6f95be-fbb2-46a6-9791-34cd794d0783